bitfinex/quotes_SOLUSD_20241223
["timestamp","ask_amount","ask_price","bid_price","bid_amount"]
[1734912911300,43.64397405,179.26,179.23,0.0709618]
[1734912911507,43.64397405,179.29,179.23,0.0709618]
[1734912911743,43.64397405,179.3,179.23,43.71493585]
[1734912912038,45.23057405,179.31,179.24,43.64397405]
[1734912912933,45.23057405,179.31,179.23,43.71493585]
[1734912913232,43.64397405,179.3,179.23,43.71493585]
[1734912913406,43.64397405,179.29,179.23,0.0709618]
[1734912913604,43.64397405,179.28,179.23,0.0709618]
[1734912913806,43.64397405,179.27,179.23,0.0709618]
[1734912914710,43.64397405,179.29,179.23,0.0709618]
[1734912914919,45.23057405,179.31,179.23,43.71493585]
[1734912915115,7.9311,179.36,179.27,43.64397405]
[1734912915440,43.64397405,179.35,179.27,43.64397405]
[1734912915620,43.64397405,179.34,179.27,43.64397405]
[1734912916210,43.64397405,179.33,179.26,43.64397405]
[1734912916538,43.64397405,179.33,179.25,43.64397405]
[1734912917034,43.64397405,179.35,179.27,43.64397405]
[1734912917418,43.64397405,179.35,179.28,43.64397405]
[1734912917618,43.64397405,179.36,179.29,43.64397405]
[1734912918007,43.64397405,179.4,179.33,43.64397405]
[1734912918211,43.64397405,179.43,179.36,43.64397405]
[1734912918835,43.64397405,179.41,179.34,43.64397405]
[1734912919043,43.64397405,179.39,179.31,63.64397405]
[1734912919227,43.64397405,179.39,179.31,43.64397405]
[1734912919439,43.64397405,179.39,179.32,43.64397405]
[1734912920168,43.64397405,179.38,179.31,43.64397405]
[1734912920326,43.64397405,179.37,179.3,43.64397405]
[1734912920866,43.64397405,179.38,179.31,43.64397405]
[1734912921032,43.64397405,179.39,179.32,43.64397405]
[1734912921437,43.64397405,179.38,179.31,43.64397405]
[1734912921623,43.64397405,179.39,179.32,43.64397405]
[1734912921823,43.64397405,179.38,179.31,43.64397405]
[1734912922048,43.64397405,179.4,179.33,43.64397405]
[1734912923057,43.64397405,179.41,179.33,43.64397405]
[1734912923258,13.9337,179.43,179.36,43.64397405]
[1734912923441,13.9337,179.43,179.37,43.64397405]
[1734912923627,43.64397405,179.44,179.36,43.64397405]
[1734912923949,43.64397405,179.44,179.37,43.64397405]
[1734912924640,59.13507405,179.47,179.39,43.64397405]
[1734912924957,43.64397405,179.46,179.39,43.64397405]
[1734912925340,43.64397405,179.48,179.39,43.64397405]
[1734912925664,43.64397405,179.49,179.42,43.64397405]
[1734912926473,43.64397405,179.52,179.44,43.64397405]
[1734912926767,43.64397405,179.52,179.38,0.83589766]
[1734912926768,43.64397405,179.53,179.46,43.64397405]
[1734912927467,43.64397405,179.53,179.4,0.83566538]
[1734912927468,45.22017405,179.54,179.47,43.64397405]
[1734912927966,43.64397405,179.59,179.52,43.64397405]
[1734912928178,45.25517405,179.6,179.53,43.64397405]
[1734912928474,43.64397405,179.59,179.52,43.64397405]
[1734912928637,13.9205,179.59,179.45,6.1395]
[1734912928842,43.64397405,179.54,179.47,43.64397405]
[1734912929758,43.64397405,179.54,179.46,43.64397405]
[1734912929969,43.64397405,179.53,179.46,43.64397405]
[1734912930273,43.64397405,179.54,179.46,43.64397405]
[1734912930471,43.64397405,179.54,179.47,43.64397405]
[1734912931479,43.64397405,179.55,179.48,43.64397405]
[1734912932659,43.64397405,179.54,179.47,43.64397405]
[1734912932858,43.64397405,179.55,179.47,43.64397405]
[1734912933045,43.64397405,179.55,179.43,2.48934533]
[1734912933046,43.64397405,179.58,179.51,43.64397405]
[1734912933380,1.6112,179.6,179.54,43.64397405]
[1734912933544,1.5649,179.65,179.53,0.12549]
[1734912933749,45.20887405,179.65,179.54,20.0]
[1734912933946,45.20887405,179.65,179.55,0.8351075]
[1734912934154,43.64397405,179.69,179.61,43.64397405]
[1734912934352,45.24467405,179.7,179.63,43.64397405]
[1734912934785,45.24467405,179.7,179.64,43.64397405]
[1734912935073,43.64397405,179.72,179.65,43.64397405]
[1734912935273,43.64397405,179.73,179.66,43.64397405]
[1734912935476,45.23217405,179.75,179.66,43.64397405]
[1734912935651,43.64397405,179.76,179.66,67.42085805]
[1734912936554,43.64397405,179.77,179.66,67.54634805]
[1734912936762,43.64397405,179.79,179.66,67.54634805]
[1734912936968,43.64397405,179.81,179.66,67.54634805]
[1734912937279,43.64397405,179.82,179.75,43.64397405]
[1734912937454,43.64397405,179.83,179.76,43.64397405]
[1734912937979,43.64397405,179.82,179.75,43.64397405]
[1734912938161,43.64397405,179.82,179.74,43.64397405]
[1734912938361,43.64397405,179.82,179.75,43.64397405]
[1734912938571,58.24309325,179.85,179.77,43.64397405]
[1734912939277,14.5991192,179.85,179.7,0.83422326]
[1734912939476,43.64397405,179.75,179.68,43.64397405]
[1734912939661,43.64397405,179.75,179.67,43.64397405]
[1734912940062,43.64397405,179.75,179.68,43.64397405]
[1734912940966,43.64397405,179.75,179.66,43.64397405]
[1734912941172,57.55247405,179.75,179.66,43.64397405]
[1734912941373,43.64397405,179.7,179.63,43.64397405]
[1734912941575,43.64397405,179.71,179.64,43.64397405]
[1734912941953,43.64397405,179.71,179.63,43.64397405]
[1734912942579,13.9116,179.71,179.65,43.64397405]
[1734912942787,43.64397405,179.74,179.67,43.64397405]
[1734912942962,43.64397405,179.7,179.63,43.64397405]
[1734912943159,43.64397405,179.7,179.61,43.64397405]
[1734912943375,20.0,179.71,179.63,43.64397405]
[1734912943551,20.0,179.71,179.65,43.64397405]
[1734912943753,43.64397405,179.76,179.67,43.64397405]
[1734912944072,43.64397405,179.76,179.69,43.64397405]
[1734912945482,43.64397405,179.78,179.69,43.64397405]
[1734912946358,43.64397405,179.76,179.69,43.64397405]
[1734912946566,43.64397405,179.76,179.64,43.64397405]
[1734912946567,43.64397405,179.76,179.67,43.64397405]
[1734912946870,43.64397405,179.74,179.67,43.64397405]
[1734912947592,43.64397405,179.76,179.68,43.64397405]
[1734912947884,63.64397405,179.78,179.7,43.64397405]
[1734912948085,43.64397405,179.77,179.69,43.64397405]
[1734912949106,43.64397405,179.78,179.7,43.64397405]
[1734912950193,43.64397405,179.74,179.67,43.64397405]
[1734912950701,43.64397405,179.7,179.62,43.64397405]
[1734912951795,57.55607405,179.7,179.62,43.64397405]
[1734912952002,43.64397405,179.68,179.6,43.64397405]
[1734912952904,57.55607405,179.7,179.62,43.64397405]
[1734912953203,43.64397405,179.7,179.62,43.64397405]
[1734912953886,1.6467,179.73,179.64,43.64397405]
[1734912953887,43.64397405,179.72,179.64,43.64397405]
[1734912954905,43.64397405,179.7,179.62,43.64397405]
[1734912955099,43.64397405,179.66,179.58,43.64397405]
[1734912955400,43.64397405,179.63,179.55,43.64397405]
[1734912955705,43.64397405,179.62,179.55,43.64397405]
[1734912956009,43.64397405,179.59,179.51,43.64397405]
[1734912956220,43.64397405,179.57,179.5,43.64397405]
[1734912956398,43.64397405,179.55,179.48,43.64397405]
[1734912957219,43.64397405,179.53,179.46,43.64397405]
[1734912957591,43.64397405,179.53,179.44,43.64397405]
[1734912957795,43.64397405,179.52,179.45,43.64397405]
[1734912958012,63.64397405,179.54,179.45,43.64397405]
[1734912958209,43.64397405,179.52,179.45,43.64397405]
[1734912958405,43.64397405,179.5,179.42,43.64397405]
[1734912958605,43.64397405,179.51,179.43,43.64397405]
[1734912958991,43.64397405,179.56,179.48,43.64397405]
[1734912959197,43.64397405,179.57,179.5,43.64397405]
[1734912959392,43.64397405,179.56,179.49,43.64397405]
[1734912959697,43.64397405,179.53,179.46,43.64397405]
[1734912959895,43.64397405,179.53,179.41,20.0]
[1734912959896,43.64397405,179.52,179.45,43.64397405]
[1734912960090,43.64397405,179.52,179.44,43.64397405]
[1734912960318,43.64397405,179.51,179.44,43.64397405]
[1734912960613,43.64397405,179.51,179.39,2.34276064]
[1734912960614,43.64397405,179.49,179.42,43.64397405]
[1734912960822,43.64397405,179.49,179.41,43.64397405]
[1734912960994,43.64397405,179.48,179.41,43.64397405]
[1734912961193,45.17397405,179.52,179.44,43.64397405]
[1734912961418,43.64397405,179.55,179.48,43.64397405]
[1734912962007,43.64397405,179.54,179.47,43.64397405]
[1734912962898,65.15387405,179.57,179.49,43.64397405]
[1734912963095,65.15387405,179.57,179.43,0.83561688]
[1734912963096,45.15387405,179.57,179.5,43.64397405]
[1734912963308,1.5099,179.57,179.5,43.64397405]
[1734912963512,1.5099,179.57,179.51,43.64397405]
[1734912963695,45.15387405,179.57,179.49,43.64397405]
[1734912963905,43.64397405,179.56,179.48,43.64397405]
[1734912964095,43.64397405,179.53,179.45,43.64397405]
[1734912964300,43.64397405,179.49,179.42,43.64397405]
[1734912964530,43.64397405,179.48,179.41,43.64397405]
[1734912966019,43.64397405,179.51,179.43,43.64397405]
[1734912966211,49.76577405,179.53,179.45,43.64397405]
[1734912966701,43.64397405,179.55,179.47,43.64397405]
[1734912966922,57.56747405,179.56,179.48,43.64397405]
[1734912967121,1.5099,179.57,179.53,43.64397405]
[1734912967450,43.64397405,179.55,179.47,50.07217405]
[1734912967622,49.3917,179.61,179.42,6.4282]
[1734912968012,49.3917,179.61,179.39,2.39352376]
[1734912968207,20.0,179.58,179.39,1.5579]
[1734912968403,20.0,179.58,179.4,0.96126993]
[1734912968595,20.0,179.54,179.4,0.96126993]
[1734912968796,43.64397405,179.52,179.45,43.64397405]
[1734912969015,43.64397405,179.53,179.46,43.64397405]
[1734912969322,43.64397405,179.57,179.49,43.64397405]
[1734912969504,43.64397405,179.52,179.44,43.64397405]
[1734912970409,43.64397405,179.5,179.42,43.64397405]
[1734912970924,43.64397405,179.52,179.44,43.64397405]
[1734912971597,43.64397405,179.56,179.48,43.64397405]
[1734912972726,43.64397405,179.6,179.52,43.64397405]
[1734912972908,60.40397405,179.73,179.56,43.64397405]
[1734912972909,43.64397405,179.62,179.56,43.64397405]
[1734912973100,43.64397405,179.64,179.56,43.64397405]
[1734912973820,43.64397405,179.61,179.53,43.64397405]
[1734912974046,43.64397405,179.57,179.49,43.64397405]
[1734912974324,43.64397405,179.59,179.52,43.64397405]
[1734912974814,43.64397405,179.59,179.5,43.64397405]
[1734912975399,43.64397405,179.53,179.43,7.14813909]
[1734912975624,43.64397405,179.52,179.44,43.64397405]
[1734912975832,43.64397405,179.5,179.42,43.64397405]
[1734912976605,43.64397405,179.48,179.4,43.64397405]
[1734912976805,43.64397405,179.49,179.41,43.64397405]
[1734912978345,57.57097405,179.51,179.43,43.64397405]
[1734912979033,43.64397405,179.51,179.43,43.64397405]
[1734912979501,43.64397405,179.53,179.45,43.64397405]
[1734912979700,43.64397405,179.51,179.45,43.64397405]
[1734912980125,43.64397405,179.51,179.43,43.64397405]
[1734912980321,43.64397405,179.49,179.41,43.64397405]
[1734912980497,43.64397405,179.46,179.38,43.64397405]
[1734912980699,43.64397405,179.45,179.38,43.64397405]
[1734912980927,43.64397405,179.43,179.36,43.64397405]
[1734912981132,57.57627405,179.44,179.36,43.64397405]
[1734912981919,43.64397405,179.44,179.37,43.64397405]
[1734912982221,45.23097405,179.45,179.37,43.64397405]
[1734912982533,1.587,179.45,179.38,43.64397405]
[1734912985332,43.64397405,179.48,179.41,43.64397405]
[1734912985551,43.64397405,179.48,179.39,0.83598786]
[1734912985552,43.64397405,179.51,179.44,43.64397405]
[1734912985849,43.64397405,179.53,179.46,43.64397405]
[1734912986208,57.56927405,179.53,179.45,43.64397405]
[1734912986412,43.64397405,179.5,179.42,43.64397405]
[1734912986630,43.64397405,179.49,179.41,43.64397405]
[1734912986938,43.64397405,179.5,179.42,43.64397405]
[1734912987462,43.64397405,179.5,179.39,0.12549]
[1734912987463,45.14547405,179.54,179.46,43.64397405]
[1734912987618,43.64397405,179.56,179.49,43.64397405]
[1734912988016,43.64397405,179.52,179.45,43.64397405]
[1734912988233,43.64397405,179.5,179.43,43.64397405]
[1734912988527,41.7669,179.57,179.4,49.98807405]
[1734912988528,43.64397405,179.48,179.4,49.98807405]
[1734912988731,43.64397405,179.47,179.4,43.64397405]
[1734912989440,43.64397405,179.46,179.39,43.64397405]
[1734912989604,43.64397405,179.47,179.39,43.64397405]
[1734912990007,43.64397405,179.46,179.38,43.64397405]
[1734912990207,43.64397405,179.45,179.37,43.64397405]
[1734912990435,43.64397405,179.41,179.34,43.64397405]
[1734912990741,43.64397405,179.4,179.32,43.64397405]
[1734912991113,43.64397405,179.46,179.31,50.04747405]
[1734912991114,43.64397405,179.39,179.31,50.04747405]
[1734912991347,43.64397405,179.41,179.34,43.64397405]
[1734912991523,43.64397405,179.44,179.37,43.64397405]
[1734912991720,43.64397405,179.46,179.39,43.64397405]
[1734912992034,45.24237405,179.49,179.41,43.64397405]
[1734912992238,45.24237405,179.49,179.42,43.64397405]
[1734912992718,45.24237405,179.49,179.41,43.64397405]
[1734912993044,43.64397405,179.48,179.41,43.64397405]
[1734912993341,43.64397405,179.48,179.4,43.64397405]
[1734912993745,45.24237405,179.49,179.41,43.64397405]
[1734912995426,43.64397405,179.47,179.39,43.64397405]
[1734912995630,43.64397405,179.46,179.38,43.64397405]
[1734912995955,57.57307405,179.48,179.4,43.64397405]
[1734912996546,43.64397405,179.48,179.4,43.64397405]
[1734912997351,43.64397405,179.46,179.38,43.64397405]
[1734912997521,43.64397405,179.44,179.36,43.64397405]
[1734912998146,43.64397405,179.42,179.34,64.4799527]
[1734912998448,13.9308,179.46,179.36,43.64397405]
[1734912998449,43.64397405,179.44,179.36,43.64397405]
[1734912999465,43.64397405,179.44,179.37,0.12549]
[1734912999637,43.64397405,179.46,179.38,43.64397405]
[1734913002149,43.64397405,179.48,179.4,43.64397405]
[1734913002841,43.64397405,179.48,179.42,43.64397405]
[1734913003049,43.64397405,179.5,179.42,43.64397405]
[1734913004031,43.64397405,179.48,179.4,43.64397405]
[1734913004237,43.64397405,179.46,179.38,43.64397405]
[1734913005659,43.64397405,179.42,179.34,43.64397405]
[1734913005833,43.64397405,179.46,179.38,43.64397405]
[1734913006040,45.20497405,179.48,179.4,43.64397405]
[1734913006741,43.64397405,179.46,179.38,43.64397405]
[1734913007059,43.64397405,179.46,179.39,0.83591977]
[1734913007864,43.64397405,179.48,179.4,67.54634805]
[1734913008166,43.64397405,179.45,179.36,43.64397405]
[1734913008359,43.64397405,179.43,179.36,43.64397405]
[1734913008664,43.64397405,179.41,179.34,43.64397405]
[1734913009275,43.64397405,179.37,179.3,49.76597405]
[1734913009974,43.64397405,179.41,179.34,43.64397405]
[1734913010135,43.64397405,179.44,179.36,0.12549]
[1734913010335,43.64397405,179.44,179.37,44.47990303]
[1734913010567,43.64397405,179.46,179.38,23.902374]
[1734913010869,43.64397405,179.48,179.41,43.64397405]
[1734913011063,43.64397405,179.48,179.41,44.47974124]
[1734913011570,43.64397405,179.5,179.42,67.42085805]
[1734913011746,43.64397405,179.52,179.43,44.47964192]
[1734913012433,43.64397405,179.44,179.33,6.2979]
[1734913012633,43.64397405,179.42,179.34,43.64397405]
[1734913012862,43.64397405,179.39,179.32,43.64397405]
[1734913013160,43.64397405,179.37,179.3,43.64397405]
[1734913013362,43.64397405,179.35,179.25,2.39638058]
[1734913013546,43.64397405,179.35,179.28,43.64397405]
[1734913013750,43.64397405,179.36,179.28,43.64397405]
[1734913013959,41.8014,179.42,179.29,43.64397405]
[1734913013960,43.64397405,179.37,179.29,43.64397405]
[1734913014264,43.64397405,179.36,179.29,43.64397405]
[1734913014763,43.64397405,179.37,179.29,43.64397405]
[1734913015363,43.64397405,179.36,179.29,43.64397405]
[1734913016051,43.64397405,179.37,179.3,43.64397405]
[1734913016650,20.0,179.37,179.3,43.64397405]
[1734913016866,43.64397405,179.39,179.3,43.64397405]
[1734913017968,43.64397405,179.39,179.31,43.64397405]
[1734913018170,43.64397405,179.38,179.3,43.64397405]
[1734913018373,43.64397405,179.34,179.27,43.64397405]
[1734913018679,43.64397405,179.34,179.25,43.64397405]
[1734913018887,43.64397405,179.32,179.25,43.64397405]
[1734913019092,43.64397405,179.32,179.24,49.94187405]
[1734913019266,43.64397405,179.3,179.22,43.64397405]
[1734913019461,8.3213,179.34,179.22,43.64397405]
[1734913019462,43.64397405,179.29,179.22,43.64397405]
[1734913019786,20.0,179.24,179.17,43.64397405]
[1734913019965,63.64397405,179.24,179.17,43.64397405]
[1734913020154,63.64397405,179.24,179.16,43.64397405]
[1734913020776,87.42085805,179.24,179.23,1.92e-05]
[1734913021299,63.64397405,179.24,179.23,1.92e-05]
[1734913021851,20.0,179.26,179.23,1.92e-05]
[1734913022066,43.64397405,179.29,179.23,1.92e-05]
[1734913022271,43.64397405,179.3,179.23,1.92e-05]
[1734913022664,43.64397405,179.28,179.23,1.92e-05]
[1734913022864,43.64397405,179.29,179.23,1.92e-05]
[1734913023082,43.64397405,179.3,179.23,1.92e-05]
[1734913023289,22.262,179.34,179.23,1.92e-05]
[1734913023290,43.64397405,179.33,179.25,43.64397405]
[1734913023462,43.64397405,179.33,179.23,1.92e-05]
[1734913023463,43.64397405,179.33,179.26,43.64397405]
[1734913023660,22.262,179.34,179.24,43.64397405]
[1734913023661,43.64397405,179.31,179.24,43.64397405]
[1734913024162,43.64397405,179.32,179.24,43.64397405]
[1734913024868,43.64397405,179.33,179.25,43.64397405]
[1734913025761,43.64397405,179.34,179.27,43.64397405]
[1734913026073,43.64397405,179.34,179.26,43.64397405]
[1734913026383,43.64397405,179.31,179.24,43.64397405]
[1734913026582,43.64397405,179.29,179.23,1.92e-05]
[1734913026784,43.64397405,179.28,179.23,1.92e-05]
[1734913026977,43.64397405,179.29,179.23,1.92e-05]
[1734913027168,43.64397405,179.25,179.23,1.92e-05]
[1734913027753,43.64397405,179.37,179.23,1.92e-05]
[1734913027754,20.0,179.24,179.23,1.92e-05]
[1734913028158,43.64397405,179.27,179.23,1.92e-05]
[1734913028358,43.64397405,179.29,179.23,1.92e-05]
[1734913028581,43.64397405,179.3,179.23,1.92e-05]
[1734913028780,43.64397405,179.32,179.24,43.64397405]
[1734913029158,43.64397405,179.32,179.23,1.92e-05]
[1734913029159,43.64397405,179.32,179.25,43.64397405]
[1734913029481,43.64397405,179.33,179.25,43.64397405]
[1734913029671,43.64397405,179.34,179.26,43.64397405]
[1734913029867,43.64397405,179.36,179.28,43.64397405]
[1734913030178,43.64397405,179.36,179.29,43.64397405]
[1734913030568,43.64397405,179.36,179.28,43.64397405]
[1734913030774,43.64397405,179.33,179.26,43.64397405]
[1734913030965,43.64397405,179.35,179.28,43.64397405]
[1734913031372,43.64397405,179.36,179.28,43.64397405]
[1734913032378,43.64397405,179.36,179.29,43.64397405]
[1734913032778,43.64397405,179.39,179.32,43.64397405]
[1734913032980,43.64397405,179.4,179.33,43.64397405]
[1734913033879,43.64397405,179.43,179.35,43.64397405]
[1734913034082,43.64397405,179.42,179.35,43.64397405]
[1734913034598,13.9317,179.45,179.32,0.83609172]
[1734913034769,43.64397405,179.33,179.24,43.64397405]
[1734913034972,43.64397405,179.31,179.24,43.64397405]
[1734913035494,43.64397405,179.33,179.26,43.64397405]
[1734913036063,43.64397405,179.33,179.24,43.64397405]
[1734913036368,43.64397405,179.31,179.24,43.64397405]
[1734913036569,43.64397405,179.29,179.23,1.92e-05]
[1734913037110,43.64397405,179.31,179.24,43.64397405]
[1734913037399,43.64397405,179.34,179.27,43.64397405]
[1734913037776,43.64397405,179.34,179.26,43.64397405]
[1734913038106,43.64397405,179.29,179.23,1.92e-05]
[1734913038465,43.64397405,179.25,179.23,1.92e-05]
[1734913038669,43.64397405,179.24,179.23,1.92e-05]
[1734913039183,67.42085805,179.24,179.23,1.92e-05]
[1734913041013,43.64397405,179.24,179.23,1.92e-05]
[1734913041498,43.64397405,179.26,179.23,1.92e-05]
[1734913042300,39.67088741,179.25,179.23,1.92e-05]
[1734913042536,39.67088741,179.26,179.23,1.92e-05]
[1734913043014,39.67088741,179.3,179.23,1.92e-05]
[1734913043200,39.67088741,179.29,179.23,1.92e-05]
[1734913043406,39.67088741,179.28,179.23,1.92e-05]
[1734913044894,39.67088741,179.29,179.23,1.92e-05]
[1734913045702,59.67088741,179.29,179.23,1.92e-05]
[1734913046117,39.67088741,179.29,179.23,1.92e-05]
[1734913046296,39.67088741,179.33,179.26,39.67088741]
[1734913046504,39.67088741,179.3,179.23,1.92e-05]
[1734913046803,39.67088741,179.27,179.23,1.92e-05]
[1734913046984,39.67088741,179.24,179.23,1.92e-05]
[1734913049796,63.44777141,179.24,179.23,1.92e-05]
[1734913051417,39.67088741,179.24,179.23,1.92e-05]
[1734913052209,39.67088741,179.25,179.23,1.92e-05]
[1734913052602,39.67088741,179.26,179.23,1.92e-05]
[1734913053597,39.67088741,179.28,179.23,1.92e-05]
[1734913054011,39.67088741,179.26,179.23,1.92e-05]
[1734913054321,13.9437,179.3,179.23,1.92e-05]
[1734913054507,39.67088741,179.24,179.23,1.92e-05]
[1734913055386,27.8854,179.31,179.23,1.92e-05]
[1734913055387,39.67088741,179.25,179.23,1.92e-05]
[1734913055632,39.67088741,179.27,179.23,1.92e-05]
[1734913055936,39.67088741,179.28,179.23,1.92e-05]
[1734913056137,39.67088741,179.27,179.23,1.92e-05]
[1734913056723,39.67088741,179.3,179.23,1.92e-05]
[1734913056935,39.67088741,179.27,179.23,1.92e-05]
[1734913057088,39.67088741,179.26,179.23,1.92e-05]
[1734913057288,39.67088741,179.25,179.23,1.92e-05]
[1734913057491,39.67088741,179.26,179.23,1.92e-05]
[1734913057716,39.67088741,179.28,179.23,1.92e-05]
[1734913062095,39.67088741,179.26,179.23,1.92e-05]
[1734913062300,59.67088741,179.24,179.23,1.92e-05]
[1734913062513,20.0,179.2,179.1,51.70722831]
[1734913062713,39.67088741,179.16,179.1,12.0363409]
[1734913062917,39.67088741,179.18,179.1,51.70722831]
[1734913063220,39.67088741,179.18,179.1,39.67088741]
[1734913063422,39.67088741,179.2,179.12,39.67088741]
[1734913063607,39.67088741,179.22,179.14,39.67088741]
[1734913064227,43.78883532,179.21,179.13,43.78883532]
[1734913065105,43.78883532,179.23,179.15,43.78883532]
[1734913065838,43.78883532,179.25,179.17,43.78883532]
[1734913069810,43.78883532,179.27,179.19,43.78883532]
[1734913070007,43.78883532,179.27,179.19,49.95893532]
[1734913070532,43.78883532,179.25,179.17,43.78883532]
[1734913071047,43.78883532,179.23,179.15,50.08903532]
[1734913072351,20.0,179.2,179.13,43.78883532]
[1734913072513,43.78883532,179.19,179.11,43.78883532]
[1734913074033,43.78883532,179.19,179.13,43.78883532]
[1734913074732,20.0,179.19,179.13,43.78883532]
[1734913075133,20.0,179.19,179.11,43.78883532]
[1734913077134,63.78883532,179.19,179.11,43.78883532]
[1734913077335,63.78883532,179.19,179.12,43.78883532]
[1734913078531,43.78883532,179.17,179.1,43.78883532]
[1734913080507,43.78883532,179.17,179.06,6.4739]
[1734913080508,63.78883532,179.14,179.06,6.4739]
[1734913080708,43.78883532,179.12,179.05,44.48705452]
[1734913081515,20.0,179.09,179.05,0.6982192]
[1734913082023,13.9602,179.08,179.05,0.6982192]
[1734913082235,43.78883532,179.07,179.05,0.6982192]
[1734913082438,63.78883532,179.06,179.05,0.6982192]
[1734913083532,87.56571932,179.06,179.05,1.92e-05]
[1734913083740,43.78883532,179.06,179.05,1.92e-05]
[1734913084056,43.78883532,179.09,179.05,1.92e-05]
[1734913084605,43.78883532,179.1,179.05,1.92e-05]
[1734913084805,63.78883532,179.09,179.05,1.92e-05]
[1734913085009,43.78883532,179.07,179.05,1.92e-05]
[1734913085617,43.78883532,179.06,179.05,1.92e-05]
[1734913086914,81.52751932,179.06,179.05,1.92e-05]
[1734913087736,57.75063532,179.06,179.05,1.92e-05]
[1734913088811,59.36583532,179.06,179.05,1.92e-05]
[1734913089153,83.14271932,179.06,179.05,1.92e-05]
[1734913090119,20.0,178.98,178.89,7.7321]
[1734913090450,20.0,178.98,178.89,6.2214]
[1734913090451,43.78883532,178.94,178.89,6.2214]
[1734913090657,43.78883532,178.93,178.87,0.6982192]
[1734913090834,43.78883532,178.92,178.87,0.6982192]
[1734913091428,43.78883532,178.9,178.87,0.6982192]
[1734913092231,43.78883532,178.92,178.87,0.6982192]
[1734913092440,43.78883532,178.93,178.87,0.6982192]
[1734913092644,57.75753532,178.98,178.91,43.78883532]
[1734913093150,43.78883532,178.97,178.89,43.78883532]
[1734913093323,43.78883532,178.97,178.9,43.78883532]
[1734913093521,43.78883532,179.01,178.94,43.78883532]
[1734913094025,43.78883532,179.01,178.93,43.78883532]
[1734913094234,43.78883532,179.0,178.93,43.78883532]
[1734913094410,1.5941,179.06,178.89,2.44208266]
[1734913094411,43.78883532,178.98,178.9,43.78883532]
[1734913094615,43.78883532,178.97,178.9,43.78883532]
[1734913094821,43.78883532,178.99,178.92,43.78883532]
[1734913095061,43.78883532,179.0,178.92,43.78883532]
[1734913095249,43.78883532,178.99,178.92,43.78883532]
[1734913095624,43.78883532,179.0,178.92,43.78883532]
[1734913096342,23.776884,179.04,178.91,43.78883532]
[1734913096343,43.78883532,178.99,178.91,43.78883532]
[1734913096544,43.78883532,178.97,178.89,43.78883532]
[1734913096726,43.78883532,178.96,178.89,43.78883532]
[1734913097249,43.78883532,178.99,178.91,43.78883532]
[1734913097637,43.78883532,179.01,178.93,43.78883532]
[1734913098330,43.78883532,179.03,178.95,43.78883532]
[1734913098532,43.78883532,179.05,178.97,43.78883532]
[1734913098728,43.78883532,179.07,179.01,43.78883532]
[1734913098925,43.78883532,179.09,179.02,43.78883532]
[1734913099122,1.5231,179.11,179.02,43.78883532]
[1734913099123,43.78883532,179.1,179.02,43.78883532]
[1734913099418,43.78883532,179.04,178.96,43.78883532]
[1734913099624,85.66473532,179.1,178.94,6.0965]
[1734913099625,43.78883532,179.01,178.94,6.0965]
[1734913099819,43.78883532,178.99,178.94,6.0965]
[1734913100119,43.78883532,178.99,178.9,43.78883532]
[1734913101238,43.78883532,179.03,178.94,43.78883532]
[1734913101440,43.78883532,179.03,178.96,43.78883532]
[1734913101642,43.78883532,179.05,178.96,43.78883532]
[1734913102027,43.78883532,179.05,178.98,43.78883532]
[1734913102582,43.78883532,179.07,178.98,43.78883532]
[1734913103041,43.78883532,179.03,178.94,43.78883532]
[1734913103352,43.78883532,178.99,178.92,43.78883532]
[1734913103658,119.66733532,179.1,178.9,43.78883532]
[1734913103659,43.78883532,178.97,178.9,43.78883532]
[1734913103959,43.78883532,178.94,178.87,44.48705452]
[1734913104249,43.78883532,178.92,178.87,0.6982192]
[1734913104964,43.78883532,178.9,178.87,0.6982192]
[1734913105656,13.9713,178.94,178.87,0.6982192]
[1734913105657,43.78883532,178.91,178.87,0.6982192]
[1734913106026,43.78883532,178.9,178.87,0.6982192]
[1734913107039,43.78883532,178.88,178.87,0.6982192]
[1734913107564,43.78883532,178.88,178.87,1.92e-05]
[1734913107565,67.56571932,178.88,178.87,1.92e-05]
[1734913108055,23.776884,178.83,178.69,7.2307192]
[1734913108287,43.78883532,178.76,178.69,51.01955452]
[1734913108635,43.78883532,178.76,178.69,7.2307192]
[1734913108856,43.78883532,178.78,178.7,43.78883532]
[1734913109053,20.0,178.8,178.71,43.78883532]
[1734913109254,43.78883532,178.77,178.7,43.78883532]
[1734913110159,43.78883532,178.77,178.69,51.01955452]
[1734913111136,43.78883532,178.77,178.7,43.78883532]
[1734913111339,43.78883532,178.76,178.69,51.01955452]
[1734913111558,43.78883532,178.75,178.69,7.2307192]
[1734913111961,63.78883532,178.76,178.69,7.2307192]
[1734913112239,43.78883532,178.76,178.69,7.2307192]
[1734913112533,43.78883532,178.77,178.69,51.01955452]
[1734913112733,43.78883532,178.77,178.7,43.78883532]
[1734913112946,43.78883532,178.79,178.71,43.78883532]
[1734913113470,43.78883532,178.81,178.74,43.78883532]
[1734913113661,43.78883532,178.84,178.76,43.78883532]
[1734913113965,43.78883532,178.87,178.79,43.78883532]
[1734913114264,43.78883532,178.9,178.82,43.78883532]
[1734913114566,43.78883532,178.92,178.85,43.78883532]